fUST/lending_fUST_20250815
["ID","MTS","AMOUNT","RATE_DAILY","PERIOD"]
[379243172,1755220238128,-216.75489391,0.00021497,2]
[379243174,1755220238139,-843.37884167,0.00021497,2]
[379243176,1755220238148,-408.0,0.00021716,2]
[379243178,1755220238158,-1000.0,0.00021748,2]
[379243180,1755220238167,-420.0,0.00021762,2]
[379243182,1755220238176,-500.0,0.00021917,2]
[379243184,1755220238186,-500.0,0.00021917,2]
[379243186,1755220238195,-500.0,0.00021917,2]
[379243188,1755220238204,-500.0,0.00021917,2]
[379243190,1755220238213,-500.0,0.00021917,2]
[379243192,1755220238225,-500.0,0.00021917,2]
[379243194,1755220238234,-500.0,0.00021917,2]
[379243196,1755220238244,-500.0,0.00021917,2]
[379243199,1755220238253,-316.22,0.00022,2]
[379243200,1755220238263,-168.0,0.00022021,2]
[379243203,1755220238272,-683.25,0.00022093,2]
[379243205,1755220238281,-234.146742,0.00022173,7]
[379243207,1755220238290,-151.0,0.00022173,7]
[379243209,1755220238300,-500.0,0.00022177,2]
[379243211,1755220238309,-500.0,0.00022178,2]
[379243213,1755220238318,-460.0,0.00022288,2]
[379243214,1755220238328,-500.0,0.00022289,2]
[379243216,1755220238337,-500.0,0.00022289,2]
[379243218,1755220238347,-160.0,0.0002229,2]
[379243220,1755220238356,-1500.0,0.00022296,2]
[379243222,1755220238365,-200.0,0.0002238,20]
[379243224,1755220238374,-200.0,0.0002238,20]
[379243227,1755220238384,-200.0,0.0002238,20]
[379243229,1755220238393,-200.0,0.0002238,20]
[379243230,1755220238403,-200.0,0.0002238,20]
[379243232,1755220238412,-200.0,0.0002238,20]
[379243235,1755220238422,-200.0,0.0002238,20]
[379243237,1755220238431,-200.0,0.0002238,20]
[379243239,1755220238442,-200.0,0.0002238,20]
[379243241,1755220238451,-200.0,0.0002238,20]
[379243243,1755220238461,-240.0,0.0002238,20]
[379243245,1755220238470,-500.0,0.00022451,2]
[379243247,1755220238480,-168.0,0.00022464,2]
[379243249,1755220238489,-158.14726886,0.000225,4]
[379243251,1755220238498,-160.0,0.000225,5]
[379243253,1755220238507,-151.0,0.00022552,7]
[379243255,1755220238517,-155.412,0.00022552,2]
[379243257,1755220238526,-500.0,0.00022557,2]
[379243259,1755220238535,-313.66190617,0.00022557,2]
[379243261,1755220238544,-500.0,0.00022557,2]
[379243263,1755220238554,-500.0,0.00022557,2]
[379243265,1755220238564,-168.76017989,0.00022557,2]
[379243267,1755220238579,-331.23982011,0.00022557,2]
[379243269,1755220238588,-500.0,0.00022557,2]
[379243271,1755220238597,-500.0,0.00022557,2]
[379243273,1755220238607,-451.66015152,0.00022557,2]
[379243275,1755220238616,-460.0,0.00022562,2]
[379243277,1755220238625,-500.0,0.00022725,2]
[379243279,1755220238635,-285.676918,0.00022745,7]
[379243281,1755220238646,-285.676918,0.00022745,7]
[379243284,1755220238657,-2246.86447313,0.00022773,2]
[379243285,1755220238667,-285.676918,0.00022789,7]
[379243288,1755220238676,-285.676918,0.00022789,7]
[379243289,1755220238685,-420.0,0.00022799,2]
[379243291,1755220238695,-151.0,0.00022822,2]
[379243294,1755220238705,-198.0,0.00022822,7]
[379243295,1755220238715,-502.0,0.00022822,7]
[379243298,1755220238725,-460.0,0.00022836,2]
[379243300,1755220238737,-1000.0,0.00022837,2]
[379243302,1755220238747,-507.49146272,0.00022837,2]
[379243304,1755220238756,-260.0,0.00022838,2]
[379243306,1755220238765,-285.676918,0.00022872,7]
[379243308,1755220238774,-285.676918,0.00022872,7]
[379243309,1755220238783,-285.676918,0.00022875,7]
[379243312,1755220238793,-285.676918,0.00022875,7]
[379243314,1755220238802,-150.0,0.000229,10]
[379243315,1755220238811,-285.676918,0.0002298,7]
[379243318,1755220238821,-285.676918,0.0002298,7]
[379243320,1755220238831,-860.7498552,0.00022986,2]
[379243322,1755220238840,-500.0,0.00022999,2]
[379243324,1755220238849,-475.23850874,0.00023,7]
[379243326,1755220238858,-10346.43,0.00023,7]
[379243328,1755220238868,-151.0,0.00023,7]
[379243330,1755220238877,-151.0,0.00023,7]
[379243332,1755220238886,-151.0,0.00023,7]
[379243334,1755220238895,-151.0,0.00023,7]
[379243336,1755220238905,-151.0,0.00023,7]
[379243338,1755220238915,-151.0,0.00023,7]
[379243340,1755220238934,-151.0,0.00023,7]
[379243342,1755220238944,-151.0,0.00023,7]
[379243344,1755220238953,-500.0,0.00023,8]
[379243346,1755220238962,-157.0,0.00023,7]
[379243348,1755220238972,-285.676918,0.00023,7]
[379243350,1755220238981,-285.676918,0.00023,7]
[379243352,1755220238991,-285.676918,0.00023,7]
[379243354,1755220239000,-285.676918,0.00023,7]
[379243356,1755220239010,-500.0,0.00023,8]
[379243358,1755220239019,-1000.0,0.00023,5]
[379243360,1755220239029,-160.0,0.00023,2]
[379243362,1755220239038,-645.0,0.00023,2]
[379243364,1755220239049,-2259.1627,0.00023,2]
[379243366,1755220239058,-2259.1627,0.00023,2]
[379243368,1755220239067,-172.0,0.00023,7]
[379243370,1755220239077,-200.0,0.00023012,30]
[379243372,1755220239086,-151.0,0.0002304,7]
[379243374,1755220239095,-285.676918,0.0002304,7]
[379243376,1755220239104,-285.676918,0.0002304,7]
[379243378,1755220239114,-502.0,0.00023096,7]
[379243380,1755220239123,-160.0,0.000231,3]
[379243382,1755220239132,-151.0,0.000231,7]
[379243384,1755220239141,-1000.0,0.00023105,2]
[379243386,1755220239150,-1000.0,0.00023105,2]
[379243388,1755220239160,-460.0,0.0002311,2]
[379243390,1755220239169,-168.0,0.0002315,2]
[379243392,1755220239178,-160.0,0.000232,3]
[379243394,1755220239187,-163.40252618,0.000232,2]
[379243396,1755220239197,-151.0,0.00023217,7]
[379243398,1755220239207,-285.676918,0.00023217,7]
[379243400,1755220239215,-285.676918,0.00023217,7]
[379243402,1755220239225,-500.0,0.00023273,2]
[379243404,1755220239235,-151.0,0.00023288,7]
[379243406,1755220239244,-5955.61,0.0002329,10]
[379243408,1755220239253,-4963.01,0.0002329,10]
[379243410,1755220239262,-4135.84,0.0002329,10]
[379243412,1755220239272,-500.0,0.00023299,2]
[379243414,1755220239282,-383.60172348,0.00023299,2]
[379243416,1755220239291,-500.0,0.00023299,2]
[379243418,1755220239301,-222.9263801,0.00023299,2]
[379243420,1755220239311,-500.0,0.00023299,2]
[379243422,1755220239321,-500.0,0.00023299,2]
[379243424,1755220239330,-500.0,0.00023299,2]
[379243426,1755220239339,-500.0,0.00023299,2]
[379243428,1755220239348,-485.7518309,0.00023299,2]
[379243430,1755220239357,-500.0,0.00023299,2]
[379243432,1755220239366,-500.0,0.00023299,2]
[379243434,1755220239375,-500.0,0.00023299,2]
[379243436,1755220239384,-464.75503313,0.00023299,2]
[379243438,1755220239393,-500.0,0.00023299,2]
[379243440,1755220239403,-500.0,0.00023299,2]
[379243442,1755220239413,-500.0,0.00023299,2]
[379243444,1755220239422,-500.0,0.00023299,2]
[379243446,1755220239431,-500.0,0.00023299,2]
[379243448,1755220239441,-500.0,0.00023299,2]
[379243450,1755220239451,-500.0,0.00023299,2]
[379243452,1755220239461,-607.01541218,0.00023299,2]
[379243454,1755220239470,-500.0,0.00023299,2]
[379243456,1755220239480,-650.0,0.00023299,2]
[379243458,1755220239489,-500.0,0.00023299,2]
[379243460,1755220239499,-406.51937119,0.00023299,2]
[379243462,1755220239508,-500.0,0.00023299,2]
[379243464,1755220239518,-500.0,0.00023299,2]
[379243466,1755220239528,-153.0195453,0.00023299,2]
[379243523,1755220240055,-374.02161826,0.0002329,10]
[379243525,1755220240067,-684.51880517,0.0002329,10]
[379243805,1755220243162,-33.97130655,0.00023299,2]
[379243808,1755220243175,-13.00914815,0.00023299,2]
[379243809,1755220243183,-500.0,0.00023299,2]
[379243811,1755220243193,-610.40465806,0.00023299,2]
[379243814,1755220243203,-160.0,0.000233,7]
[379243817,1755220243213,-3200.18636453,0.000233,7]
[379244100,1755220246088,-210.82,0.00022,2]
[379244103,1755220246098,-316.5354621,0.000233,7]
[379244108,1755220246146,-10510.16054937,0.000233,7]
[379244110,1755220246155,-151.0,0.000233,7]
[379244112,1755220246165,-151.0,0.000233,7]
[379244114,1755220246174,-151.0,0.000233,7]
[379244116,1755220246185,-275.042489,0.000233,7]
[379244119,1755220246195,-341.7,0.000233,7]
[379244121,1755220246206,-285.676918,0.000233,7]
[379244123,1755220246215,-285.676924,0.000233,7]
[379244124,1755220246226,-153.308708,0.000233,7]
[379244127,1755220246235,-1305.3601393,0.000233,14]
[379244784,1755220493877,170.0,0.00030137,120]
[379244785,1755220511555,170.0,0.00030137,120]
[379244786,1755220593222,185.0,0.00030137,120]
[379244792,1755221210848,166.163777,0.00013699,2]
[379244795,1755221254106,-343.428345,0.00020271,2]
[379244796,1755221254131,-500.0,0.00020286,2]
[379244797,1755221254154,-1501.66165841,0.00020421,2]
[379244802,1755221347129,-8325.0960506,0.000185,2]
[379244803,1755221359188,-1380.6436,0.000185,2]
[379244857,1755221432430,-168.91105518,0.00018315,2]
[379244859,1755221432439,-71.36462769,0.000185,2]
[379244861,1755221432449,-453.50035006,0.000204,2]
[379244863,1755221432458,-160.0,0.00020419,2]
[379244865,1755221432470,-464.34375389,0.00020421,2]
[379244867,1755221432480,-163.40252618,0.00021242,2]
[379244869,1755221432490,-300.0,0.00021271,2]
[379244871,1755221432499,-591.56383434,0.00021272,7]
[379244873,1755221432511,-3666.49299318,0.00021272,7]
[379244875,1755221432523,-3453.67,0.00021272,7]
[379244980,1755221435776,1796.0,0.000301,120]
[379244985,1755221438313,-941.71396452,0.00021272,7]
[379244986,1755221438325,-287.31959747,0.00021272,7]
[379245057,1755221440260,-338.19207629,0.00021272,7]
[379245075,1755221446455,-539.86957383,0.00021216,2]
[379245076,1755221446467,-333.67086873,0.00021216,2]
[379245077,1755221446479,-818.47671499,0.00021216,2]
[379245078,1755221446488,-3221.0475342,0.00021272,7]
[379245079,1755221446498,-329.56173381,0.0002128,2]
[379245080,1755221446507,-442.79563734,0.0002128,2]
[379245081,1755221446518,-17.20436266,0.0002128,2]
[379245082,1755221446528,-231.85678959,0.0002128,2]
[379245083,1755221446537,-209.43884775,0.00021281,7]
[379245084,1755221506328,229.5133772,0.00028297,120]
[379245086,1755221557010,248.62013681,0.000222,69]
[379245087,1755221581144,233.0,0.00018,21]
[379245089,1755221629028,2000.0,0.0003,120]
[379245092,1755222040161,179.05789699,0.000222,69]
[379245093,1755222296257,166.163777,0.00013699,2]
[379245096,1755222426139,-168.89109717,0.0001926,3]
[379245097,1755222426160,-272.5359392,0.00019973,2]
[379245098,1755222426182,-451.48745,0.00019991,2]
[379245099,1755222426202,-73.06743693,0.00020172,2]
[379245100,1755222447138,-152.90992746,0.00020172,2]
[379245101,1755222478820,211.621121,0.0003,120]
[379245103,1755222538776,179.05789699,0.000222,69]
[379245104,1755222562130,-196.0,0.00019178,2]
[379245106,1755222632528,-78.4,0.00019178,2]
[379245107,1755222632539,-233.0,0.00019233,3]
[379245108,1755222632548,-90.56332938,0.00020172,2]
[379245109,1755222632558,-500.0,0.00020286,2]
[379245110,1755222632567,-666.0,0.00020307,2]
[379245111,1755222632577,-150.59750633,0.00021173,2]
[379245112,1755222632586,-1005.87,0.000212,2]
[379245113,1755222632595,-153.81016941,0.00021212,2]
[379245114,1755222632605,-795.0,0.00021214,2]
[379245115,1755222632614,-3278.2,0.00021215,10]
[379245116,1755222632623,-2731.83,0.00021215,10]
[379245117,1755222632632,-2276.53,0.00021215,10]
[379245118,1755222632641,-1897.1,0.00021215,10]
[379245119,1755222632650,-438.66085252,0.00021224,2]
[379245120,1755222632660,-301.46811421,0.00021224,2]
[379245121,1755222632669,-500.0,0.00021224,2]
[379245122,1755222632678,-301.94648712,0.00021224,2]
[379245123,1755222632688,-500.0,0.00021224,2]
[379245124,1755222632701,-500.0,0.00021224,2]
[379245125,1755222632711,-500.0,0.00021224,2]
[379245126,1755222632721,-500.0,0.00021224,2]
[379245127,1755222632730,-500.0,0.00021224,2]
[379245128,1755222632741,-500.0,0.00021224,2]
[379245129,1755222632750,-500.0,0.00021224,2]
[379245130,1755222632759,-500.0,0.00021224,2]
[379245131,1755222632769,-500.0,0.00021224,2]
[379245132,1755222632778,-500.0,0.00021224,2]
[379245133,1755222632787,-500.0,0.00021224,2]
[379245134,1755222632797,-500.0,0.00021224,2]
[379245135,1755222632807,-500.0,0.00021224,2]
[379245136,1755222632816,-500.0,0.00021224,2]
[379245137,1755222632826,-500.0,0.00021224,2]
[379245138,1755222632835,-451.24917212,0.00021224,2]
[379245139,1755222632845,-500.0,0.00021224,2]
[379245140,1755222632855,-500.0,0.00021224,2]
[379245141,1755222632864,-500.0,0.00021224,2]
[379245142,1755222632875,-500.0,0.00021224,2]
[379245143,1755222632885,-500.0,0.00021224,2]
[379245144,1755222632894,-500.0,0.00021224,2]
[379245145,1755222632906,-500.0,0.00021224,2]
[379245146,1755222632915,-287.05787961,0.00021224,2]
[379245147,1755222632924,-500.0,0.00021224,2]
[379245148,1755222632934,-500.0,0.00021224,2]
[379245149,1755222632943,-500.0,0.00021224,2]
[379245151,1755222632952,-500.0,0.00021224,2]
[379245153,1755222632963,-500.0,0.00021224,2]
[379245155,1755222632972,-500.0,0.00021224,2]
[379245157,1755222632982,-500.0,0.00021224,2]
[379245159,1755222632991,-500.0,0.00021224,2]
[379245161,1755222633001,-347.09464395,0.00021224,2]
[379245163,1755222633011,-500.0,0.00021224,2]
[379245165,1755222633021,-500.0,0.00021224,2]
[379245167,1755222633030,-500.0,0.00021224,2]
[379245169,1755222633040,-621.74211086,0.00021224,2]
[379245171,1755222633050,-500.0,0.00021224,2]
[379245173,1755222633059,-500.0,0.00021224,2]
[379245175,1755222633069,-500.0,0.00021224,2]
[379245176,1755222633078,-500.0,0.00021224,2]
[379245178,1755222633088,-500.0,0.00021224,2]
[379245179,1755222633098,-500.0,0.00021224,2]
[379245180,1755222633107,-460.0,0.00021224,2]
[379245181,1755222633118,-182.87733204,0.00021224,2]
[379245182,1755222633127,-594.16470876,0.00021224,2]
[379245184,1755222633136,-76772.54466629,0.00021225,2]
[379245186,1755222633146,-500.0,0.00021273,2]
[379245188,1755222633155,-500.0,0.00021273,2]
[379245190,1755222633164,-511.45645379,0.00021273,2]
[379245192,1755222633174,-509.45438569,0.00021273,2]
[379245194,1755222633183,-568.26970959,0.0002128,2]
[379245196,1755222633193,-460.0,0.0002128,2]
[379245198,1755222633202,-235.84478611,0.0002128,2]
[379245200,1755222633212,-460.0,0.0002128,2]
[379245202,1755222633222,-12290.56115225,0.00021281,7]
[379245204,1755222633232,-695.26,0.00021289,3]
[379245206,1755222633241,-347.63,0.00021289,3]
[379245208,1755222633251,-173.81,0.00021289,3]
[379245210,1755222633261,-521.46,0.00021289,3]
[379245212,1755222633270,-27.62126218,0.00021289,3]
[379245339,1755222638622,-16.98999194,0.00021289,3]
[379245340,1755222640376,-184.82874588,0.00021289,3]
[379245341,1755222640387,-2117.32125412,0.0002129,7]
[379245342,1755222640485,-5920.5,0.0002129,7]
[379245343,1755222640497,-1590.49922142,0.0002129,7]
[379245370,1755222646592,-2871.67952446,0.0002129,7]
[379245371,1755222646601,-688.37,0.00021297,3]
[379245372,1755222646611,-1150.69047554,0.00021299,7]
[379245373,1755222646622,-11349.30952446,0.00021299,7]
[379245374,1755222646631,-6454.06279874,0.00021307,7]
[379245375,1755222646642,-527.3554621,0.00021307,7]
[379245376,1755222646653,-1437.1938843,0.00021307,7]
[379245377,1755222646699,-4081.38785486,0.00021307,7]
[379245378,1755222646709,-7426.70794326,0.00021316,7]
[379245380,1755223027231,179.05789699,0.000222,69]
[379245386,1755223384616,315.1091198,0.00028298,120]
[379245391,1755223408320,166.163777,0.00013699,2]
[379245396,1755223641135,-300.0,0.00019871,2]
[379245397,1755223641660,-462.0440047,0.00019872,2]
[379245398,1755223641680,-2355.65002126,0.00019872,2]
[379245413,1755223832744,-160.0,0.0001987,2]
[379245415,1755223832753,-291.00162842,0.00019872,2]
[379245489,1755223838495,-432.79659332,0.00019872,2]
[379245490,1755223838506,-500.0,0.00020286,2]
[379245491,1755223838515,-300.0,0.00020306,2]
[379245492,1755223838524,-863.0,0.00020306,2]
[379245493,1755223838534,-361.18996,0.00020307,2]
[379245494,1755223838544,-1727.45304726,0.00020307,2]
[379245495,1755223838555,-5057.99277917,0.00020307,2]
[379245496,1755223838567,-2462.92894277,0.00020307,2]
[379245497,1755223838577,-498.75347093,0.00020711,2]
[379245498,1755223838586,-200.0,0.00020711,20]
[379245499,1755223838595,-200.0,0.00020711,20]
[379245501,1755223838604,-200.0,0.00020711,20]
[379245502,1755223838613,-200.0,0.00020711,20]
[379245503,1755223838624,-200.0,0.00020711,20]
[379245504,1755223838634,-200.0,0.00020711,20]
[379245506,1755223838643,-200.0,0.00020711,20]
[379245508,1755223838652,-200.0,0.00020711,20]
[379245509,1755223838661,-130.54348496,0.00020877,3]
[379245510,1755223838673,-168.45651504,0.00020877,3]
[379245511,1755223838682,-150.0,0.00021,2]
[379245512,1755223838692,-460.0,0.00021124,2]
[379245513,1755223838702,-460.0,0.00021124,2]
[379245514,1755223838714,-12936.78775646,0.00021125,2]
[379245515,1755223838725,-508.99529019,0.00021125,2]
[379245516,1755223838736,-335.0956944,0.00021125,2]
[379245605,1755223843746,-3999.98063164,0.00021125,2]
[379245622,1755224309650,166.163777,0.00013699,2]
[379245627,1755224843393,-619.60475745,0.000189,2]
[379245628,1755224843415,-208.0,0.00019233,3]
[379245629,1755224843438,-288.951968,0.00020284,2]
[379245630,1755224843458,-843.47195277,0.00020284,2]
[379245631,1755224843479,-169.38429623,0.00020403,2]
[379245632,1755224843498,-292.93743122,0.00021124,2]
[379245634,1755224911402,197.62133119,0.00025,120]
[379245635,1755224916020,528.30792011,0.00028304,60]
[379245636,1755224958119,-249.56642707,0.000184,2]
[379245637,1755224958143,-1427.49628585,0.000185,2]
[379245638,1755224958165,-48.71728708,0.000185,2]
[379245689,1755225031838,-119.18475337,0.000185,2]
[379245691,1755225031847,-262.40708836,0.000185,2]
[379245693,1755225031859,-581.06486441,0.000185,2]
[379245694,1755225031868,-500.0,0.00020286,2]
[379245695,1755225031878,-1510.3661966,0.000204,2]
[379245696,1755225031887,-167.06256878,0.00021124,2]
[379245697,1755225031897,-460.0,0.00021124,2]
[379245698,1755225031906,-1276.52108713,0.00021153,2]
[379245699,1755225031916,-180.96452276,0.00021173,2]
[379245700,1755225031925,-300.0,0.00021241,2]
[379245701,1755225031934,-300.0,0.00021241,2]
[379245702,1755225031944,-300.0,0.00021241,2]
[379245704,1755225031953,-1129.0,0.00021241,2]
[379245706,1755225031963,-1580.92,0.00021242,10]
[379245708,1755225031972,-11974.91139313,0.00021246,2]
[379245710,1755225031982,-382.48283824,0.0002125,2]
[379245712,1755225031991,-500.0,0.00021251,2]
[379245714,1755225032000,-500.0,0.00021251,2]
[379245716,1755225032010,-500.0,0.00021251,2]
[379245718,1755225032019,-462.26142942,0.00021251,2]
[379245787,1755225037697,-1317.43,0.00021242,10]
[379245789,1755225037708,-37.73857058,0.00021251,2]
[379245791,1755225037717,-500.0,0.00021251,2]
[379245793,1755225037727,-500.0,0.00021251,2]
[379245795,1755225037736,-500.0,0.00021251,2]
[379245797,1755225037745,-500.0,0.00021251,2]
[379245799,1755225037755,-380.79637057,0.00021251,2]
[379245801,1755225037764,-500.0,0.00021251,2]
[379245803,1755225037773,-500.0,0.00021251,2]
[379245805,1755225037782,-500.0,0.00021251,2]
[379245807,1755225037793,-500.0,0.00021251,2]
[379245809,1755225037802,-500.0,0.00021251,2]
[379245811,1755225037811,-500.0,0.00021251,2]
[379245813,1755225037820,-211.73525811,0.00021251,2]
[379245815,1755225037829,-500.0,0.00021251,2]
[379245817,1755225037838,-500.0,0.00021251,2]
[379245819,1755225037847,-368.31975227,0.00021251,2]
[379245821,1755225037857,-131.68024773,0.00021251,2]
[379245823,1755225037866,-500.0,0.00021251,2]
[379245825,1755225037875,-500.0,0.00021251,2]
[379245827,1755225037884,-500.0,0.00021251,2]
[379245829,1755225037894,-500.0,0.00021251,2]
[379245831,1755225037903,-500.0,0.00021251,2]
[379245833,1755225037913,-500.0,0.00021251,2]
[379245835,1755225037922,-341.17431705,0.00021251,2]
[379245837,1755225037931,-500.0,0.00021251,2]
[379245839,1755225037940,-500.0,0.00021251,2]
[379245841,1755225037950,-500.0,0.00021251,2]
[379245843,1755225037960,-500.0,0.00021251,2]
[379245845,1755225037969,-500.0,0.00021251,2]
[379245847,1755225037979,-500.0,0.00021251,2]
[379245849,1755225037988,-500.0,0.00021251,2]
[379245851,1755225037997,-500.0,0.00021251,2]
[379245853,1755225038008,-500.0,0.00021251,2]
[379245855,1755225038018,-500.0,0.00021251,2]
[379245857,1755225038027,-268.12910497,0.00021251,2]
[379245859,1755225038037,-500.0,0.00021251,2]
[379245861,1755225038046,-500.0,0.00021251,2]
[379245863,1755225038055,-500.0,0.00021251,2]
[379245865,1755225038064,-500.0,0.00021251,2]
[379245867,1755225038073,-500.0,0.00021251,2]
[379245869,1755225038083,-500.0,0.00021251,2]
[379245871,1755225038092,-500.0,0.00021251,2]
[379245873,1755225038101,-460.0,0.00021251,2]
[379245875,1755225038110,-460.0,0.00021251,2]
[379245877,1755225038120,-460.0,0.00021251,2]
[379245879,1755225038129,-52403.33132429,0.00021252,2]
[379245881,1755225038140,-7327.99502876,0.00021252,2]
[379245883,1755225038150,-501.29574022,0.00021273,2]
[379245885,1755225038159,-501.12600504,0.00021273,2]
[379245887,1755225038170,-500.0,0.00021273,2]
[379245889,1755225038179,-508.19884096,0.00021273,2]
[379245891,1755225038188,-151.0,0.00021273,2]
[379245893,1755225038197,-153.989528,0.00021273,2]
[379245895,1755225038207,-151.0,0.00021273,2]
[379245897,1755225038216,-157.19,0.00021297,2]
[379245899,1755225038225,-153.6684859,0.000213,2]
[379245901,1755225038234,-153.0,0.000213,2]
[379245903,1755225038243,-153.0,0.000213,2]
[379245905,1755225038253,-293.6830486,0.000213,2]
[379245907,1755225038262,-151.0,0.00021325,2]
[379245909,1755225038271,-12500.0,0.00021325,7]
[379245911,1755225038280,-152.533529,0.00021325,2]
[379245913,1755225038290,-151.0,0.00021325,2]
[379245914,1755225038299,-151.0,0.00021325,2]
[379245916,1755225038309,-151.0,0.00021325,2]
[379245918,1755225038318,-5667.37033009,0.00021334,7]
[379245921,1755225038329,-398.73,0.00021334,7]
[379245923,1755225038340,-530.64083125,0.00021334,7]
[379245925,1755225038351,-3766.42660369,0.00021334,7]
[379245927,1755225038363,-2136.83223497,0.00021334,7]
[379245929,1755225038372,-156.390329,0.00021334,2]
[379245931,1755225038381,-156.390329,0.00021334,2]
[379245933,1755225038391,-152.301148,0.00021334,2]
[379245935,1755225038401,-151.0,0.00021334,2]
[379245937,1755225038411,-151.0,0.00021334,2]
[379245939,1755225038420,-151.0,0.00021334,2]
[379245954,1755225038560,-151.0,0.00021334,2]
[379245956,1755225038570,-151.0,0.00021334,2]
[379245958,1755225038579,-482.04,0.00021341,3]
[379245961,1755225038589,-241.02,0.00021341,3]
[379245963,1755225038598,-723.1,0.00021341,3]
[379245965,1755225038608,-164.570314,0.00021342,2]
[379245967,1755225038617,-164.483261,0.00021342,2]
[379245968,1755225038626,-151.0,0.00021342,2]
[379245970,1755225038636,-203.175655,0.00021342,2]
[379245972,1755225038645,-153.799269,0.00021342,2]
[379245974,1755225038654,-3689.5705858,0.00021343,7]
[379245977,1755225038666,-8179.06859671,0.00021343,7]
[379245979,1755225038677,-631.36081749,0.00021343,7]
[379245981,1755225038687,-151.0,0.0002135,2]
[379245983,1755225038696,-1932.37723906,0.00021351,7]
[379245985,1755225038706,-682.81930476,0.00021351,7]
[379245987,1755225038718,-502.16390127,0.00021351,7]
[379246091,1755225039712,-433.33155169,0.00021351,7]
[379246094,1755225039724,-652.54969297,0.00021351,7]
[379246404,1755225042944,-299.847243,0.00020065,2]
[379246406,1755225042954,-8296.75831025,0.00021351,7]
[379246408,1755225042963,-1137.34335,0.00021352,2]
[379246410,1755225042973,-151.0,0.00021352,2]
[379246412,1755225042983,-152.670697,0.00021352,2]
[379246414,1755225042992,-151.0,0.00021352,2]
[379246416,1755225043001,-157.827803,0.00021352,2]
[379246418,1755225043011,-461.0,0.00021352,2]
[379246420,1755225043020,-160.078095,0.00021352,2]
[379246422,1755225043030,-500.0,0.00021358,2]
[379246424,1755225043039,-500.0,0.00021358,2]
[379246426,1755225043049,-500.0,0.00021358,2]
[379246428,1755225043059,-500.0,0.00021358,2]
[379246430,1755225043068,-500.0,0.00021358,2]
[379246432,1755225043077,-500.0,0.00021358,2]
[379246433,1755225043087,-376.24116251,0.00021358,2]
[379246435,1755225043096,-500.0,0.00021358,2]
[379246437,1755225043106,-500.0,0.00021358,2]
[379246440,1755225043116,-500.0,0.00021358,2]
[379246442,1755225043126,-500.0,0.00021358,2]
[379246443,1755225043135,-500.0,0.00021358,2]
[379246445,1755225043144,-500.0,0.00021358,2]
[379246447,1755225043153,-156.390329,0.0002136,2]
[379246449,1755225043162,-156.390329,0.0002136,2]
[379246451,1755225043171,-12500.0,0.0002136,7]
[379246453,1755225043181,-151.774765,0.00021369,2]
[379246455,1755225043190,-5438.86029378,0.00021369,7]
[379250293,1755225596852,166.163777,0.00013699,2]
[379250314,1755226051133,-413.0698383,0.000189,2]
[379250315,1755226051155,-1972.82617323,0.00019986,2]
[379250361,1755226232110,-196.0,0.00019178,2]
[379250362,1755226232121,-560.68850451,0.00019986,2]
[379250363,1755226232131,-245.36257127,0.00020086,2]